bitfinex-derivatives/quotes_BTCF0:USTF0_20250620
["timestamp","ask_amount","ask_price","bid_price","bid_amount"]
[1750433847139,0.14666347,104360.0,104350.0,1.02773225]
[1750433847631,0.14666347,104360.0,104350.0,1.38853225]
[1750433848443,0.14666347,104360.0,104350.0,1.41923225]
[1750433849347,0.14666347,104360.0,104350.0,1.42323225]
[1750433850040,0.14666347,104360.0,104350.0,1.42523225]
[1750433850648,0.03055967,104360.0,104350.0,1.42523225]
[1750433851249,0.03055967,104360.0,104350.0,1.45583225]
[1750433851642,0.03055967,104360.0,104350.0,1.78583225]
[1750433853545,0.03055967,104360.0,104350.0,3.28583225]
[1750433858951,7e-08,104360.0,104350.0,3.28583225]
[1750433859351,0.00417407,104360.0,104350.0,3.28583225]
[1750433859554,0.00417407,104360.0,104350.0,4.26411993]
[1750433860347,0.00417407,104360.0,104350.0,4.26611993]
[1750433861850,0.00417407,104360.0,104350.0,4.26811993]
[1750433862252,7e-08,104360.0,104350.0,4.26811993]
[1750433862557,0.001,104390.0,104380.0,0.1916097]
[1750433862757,0.2625038,104390.0,104380.0,1.78861005]
[1750433863656,0.1245331,104390.0,104380.0,2.14831959]
[1750433863956,0.1245331,104390.0,104380.0,2.17861959]
[1750433864148,0.1245331,104390.0,104380.0,2.21141959]
[1750433865156,0.1245331,104390.0,104380.0,0.96587575]
[1750433865356,0.1245331,104390.0,104380.0,2.17857959]
[1750433866055,0.1577331,104390.0,104380.0,2.17857959]
[1750433867157,0.1245331,104390.0,104380.0,2.17857959]
[1750433867458,0.1245331,104390.0,104380.0,2.20927959]
[1750433869458,0.281,104420.0,104410.0,0.1915546]
[1750433869663,0.1733,104420.0,104410.0,1.81330653]
[1750433869959,0.2243038,104420.0,104410.0,1.81330653]
[1750433870160,0.2243038,104420.0,104410.0,1.88870088]
[1750433870858,0.2496386,104420.0,104410.0,1.91910088]
[1750433871063,0.2496386,104420.0,104410.0,2.77906088]
[1750433871563,0.14,104420.0,104410.0,3.12906088]
[1750433874653,0.2428,104450.0,104440.0,0.1914996]
[1750433874857,0.2738038,104450.0,104440.0,1.81350464]
[1750433875055,0.2738038,104450.0,104440.0,2.15490464]
[1750433875260,0.2738038,104450.0,104440.0,2.67544848]
[1750433875567,0.2163214,104450.0,104440.0,2.36544848]
[1750433875761,0.191,104450.0,104440.0,2.72544848]
[1750433875959,0.18585431,104450.0,104440.0,2.72544848]
[1750433876155,0.13354164,104450.0,104440.0,2.72544848]
[1750433878264,0.13354164,104450.0,104440.0,2.72540848]
[1750433881259,0.07104164,104450.0,104440.0,2.72540848]
[1750433881455,0.0307,104470.0,104440.0,2.86901278]
[1750433881658,0.001,104480.0,104470.0,0.1914446]
[1750433881854,0.2220038,104480.0,104470.0,1.43494844]
[1750433882067,0.2220038,104480.0,104470.0,1.79574844]
[1750433882261,0.171,104480.0,104470.0,1.79574844]
[1750433882458,0.2220038,104480.0,104470.0,1.79574844]
[1750433882658,0.2220038,104480.0,104470.0,1.3433046]
[1750433882863,0.2220038,104480.0,104470.0,1.83244844]
[1750433883764,0.2220038,104480.0,104470.0,1.5107174]
[1750433883966,0.7742301,104480.0,104470.0,0.1914446]
[1750433884171,0.5828038,104480.0,104470.0,0.9457246]
[1750433884364,0.5828038,104480.0,104470.0,0.93638897]
[1750433884666,0.5828038,104480.0,104470.0,1.43495673]
[1750433884667,0.22617787,104480.0,104470.0,1.43495673]
[1750433884866,0.29647787,104480.0,104470.0,1.43495673]
[1750433885466,0.48790417,104480.0,104470.0,0.68067673]
[1750433885773,0.32181644,104480.0,104470.0,1.43495673]
[1750433885960,0.28841644,104480.0,104470.0,1.79575673]
[1750433886161,0.28841644,104480.0,104470.0,1.43495673]
[1750433886363,0.28841644,104480.0,104470.0,1.79575673]
[1750433886669,0.32181644,104480.0,104470.0,1.79575673]
[1750433888268,0.29647787,104480.0,104470.0,1.83185673]
[1750433888465,0.26307787,104480.0,104470.0,1.83185673]
[1750433888666,0.17517407,104480.0,104470.0,2.17185673]
[1750433888870,0.17517407,104480.0,104470.0,2.20565673]
[1750433889572,0.17517407,104480.0,104470.0,1.86565673]
[1750433889869,0.17517407,104480.0,104470.0,2.18565673]
[1750433890264,0.0510038,104490.0,104480.0,0.3349869]
[1750433890473,0.0910038,104490.0,104480.0,1.70907458]
[1750433890771,0.0910038,104490.0,104480.0,1.74587458]
[1750433890976,0.1263038,104490.0,104480.0,1.25673074]
[1750433891277,0.0910038,104490.0,104480.0,1.74587458]
[1750433891662,0.04,104490.0,104480.0,2.11587458]
[1750433892667,0.52381839,104500.0,104490.0,0.191408]
[1750433892867,0.48851839,104500.0,104490.0,2.7128915]
[1750433893472,0.52491839,104500.0,104490.0,2.7128915]
[1750433894675,0.57592219,104500.0,104490.0,1.03578766]
[1750433894980,0.93672219,104500.0,104490.0,1.02645487]
[1750433895164,1.16211189,104500.0,104490.0,1.78053487]
[1750433895370,1.18744971,104500.0,104490.0,1.59845966]
[1750433895672,1.18744971,104500.0,104490.0,1.77742208]
[1750433895870,1.18744971,104500.0,104490.0,1.77738208]
[1750433896070,1.62884971,104500.0,104490.0,0.00465408]
[1750433896266,1.62884971,104500.0,104490.0,0.95006208]
[1750433896267,1.24606001,104500.0,104490.0,0.95006208]
[1750433896478,0.14674162,104500.0,104490.0,0.68520592]
[1750433896680,0.14674162,104500.0,104490.0,1.79996592]
[1750433897482,0.14674162,104500.0,104490.0,1.43916592]
[1750433899886,0.15091569,104500.0,104490.0,0.95002208]
[1750433900180,1.2020275,104500.0,104490.0,0.75857408]
[1750433900380,1.2020275,104500.0,104490.0,0.94998208]
[1750433900874,1.2020275,104500.0,104490.0,0.00465408]
[1750433900875,1.5135533,104500.0,104490.0,0.00465408]
[1750433901075,0.1914263,104480.0,104470.0,0.2871539]
[1750433901271,1.24201285,104490.0,104480.0,0.1914263]
[1750433901581,1.24201285,104490.0,104480.0,0.17897851]
[1750433901781,1.68342885,104490.0,104480.0,0.17897851]
[1750433902281,1.27912019,104490.0,104480.0,0.17897851]
[1750433902482,1.37482889,104490.0,104480.0,0.17897851]
[1750433902685,1.42268489,104490.0,104480.0,0.17897851]
[1750433902981,1.44268489,104490.0,104480.0,0.17897851]
[1750433903370,1.47948489,104490.0,104480.0,0.17897851]
[1750433903782,1.00108581,104490.0,104480.0,0.17897851]
[1750433903973,1.49022965,104490.0,104480.0,0.17897851]
[1750433904174,1.52432965,104490.0,104480.0,0.17897851]
[1750433904373,2.01284804,104490.0,104480.0,0.17897851]
[1750433904589,1.95576483,104490.0,104480.0,0.17897851]
[1750433904877,0.1914263,104480.0,104470.0,0.3831317]
[1750433905082,1.36088675,104480.0,104470.0,1.07954976]
[1750433905384,1.80231875,104480.0,104470.0,0.47314976]
[1750433905775,1.80231875,104480.0,104470.0,0.37743066]
[1750433905776,1.82157111,104480.0,104470.0,0.37743066]
[1750433906581,1.57157111,104480.0,104470.0,0.22995066]
[1750433907183,1.49510214,104480.0,104470.0,0.22995066]
[1750433907574,1.49510214,104480.0,104470.0,0.21750136]
[1750433907776,0.1914446,104470.0,104460.0,1.11592755]
[1750433907980,0.87217343,104470.0,104460.0,1.09850598]
[1750433908574,0.8149446,104470.0,104460.0,1.09850598]
[1750433908873,1.36131727,104470.0,104460.0,1.09850598]
[1750433909079,1.36131727,104470.0,104460.0,1.09854598]
[1750433909280,0.87217343,104470.0,104460.0,1.05068188]
[1750433909583,0.87217343,104470.0,104460.0,0.24885788]
[1750433909879,1.55276527,104470.0,104460.0,0.20101288]
[1750433910273,1.55276527,104470.0,104450.0,1.01037178]
[1750433910274,0.687463,104460.0,104450.0,1.01037178]
[1750433910475,1.86327858,104460.0,104450.0,0.35606168]
[1750433910676,2.05475058,104460.0,104450.0,0.35606168]
[1750433911481,1.33833474,104460.0,104450.0,0.36550509]
[1750433911670,1.10110591,104460.0,104450.0,0.89014893]
[1750433911873,1.30110591,104460.0,104450.0,0.40100509]
[1750433912579,1.30110591,104460.0,104450.0,0.43690509]
[1750433912884,0.94030591,104460.0,104450.0,0.43690509]
[1750433913282,0.96566709,104460.0,104450.0,0.43690509]
[1750433913785,1.32646709,104460.0,104450.0,0.40100509]
[1750433913984,1.36526709,104460.0,104450.0,0.40100509]
[1750433914482,1.00446709,104460.0,104450.0,0.40100509]
[1750433915379,1.36526709,104460.0,104450.0,0.40100509]
[1750433916185,1.36944116,104460.0,104450.0,0.40100509]
[1750433917083,1.858585,104460.0,104450.0,0.01707248]
[1750433917282,1.858585,104460.0,104450.0,0.20855378]
[1750433917586,1.362585,104460.0,104450.0,0.20855378]
[1750433919378,0.87344116,104460.0,104450.0,0.20855378]
[1750433919577,1.362585,104460.0,104450.0,0.20855378]
[1750433920383,0.87344116,104460.0,104450.0,0.20855378]
[1750433920585,0.60627816,104460.0,104450.0,0.20855378]
[1750433920787,0.60627816,104460.0,104450.0,0.77179762]
[1750433921283,0.79774106,104460.0,104450.0,0.28265378]
[1750433921487,0.79774106,104460.0,104450.0,0.24605378]
[1750433921685,0.87434106,104460.0,104450.0,0.24605378]
[1750433921987,1.3634849,104460.0,104450.0,0.24605378]
[1750433922686,1.3634849,104460.0,104450.0,0.39357378]
[1750433922885,1.3634849,104460.0,104450.0,0.01707248]
[1750433923086,1.3634849,104460.0,104450.0,0.20855378]
[1750433923481,1.3634849,104460.0,104450.0,0.01707248]
[1750433923888,1.3634849,104460.0,104450.0,0.20854348]
[1750433924187,0.191461,104450.0,104440.0,0.3868626]
[1750433924388,0.86312218,104450.0,104440.0,0.3966158]
[1750433924784,0.86312218,104450.0,104440.0,0.3868626]
[1750433924982,0.86312218,104450.0,104440.0,0.4240626]
[1750433926284,0.82682218,104450.0,104440.0,0.4240626]
[1750433926788,0.82682218,104450.0,104440.0,0.43342678]
[1750433927490,0.78762158,104450.0,104440.0,0.77505062]
[1750433927788,0.78762158,104450.0,104440.0,1.56707062]
[1750433927789,0.42682158,104450.0,104440.0,1.56707062]
[1750433929294,0.42682158,104450.0,104440.0,1.07792678]
[1750433929884,0.78762158,104450.0,104440.0,1.07792678]
[1750433930286,0.43099565,104450.0,104440.0,1.07792678]
[1750433930693,0.43099565,104450.0,104440.0,0.32400678]
[1750433931996,0.43099565,104450.0,104440.0,0.47136678]
[1750433932495,1.09315728,104450.0,104440.0,0.19392418]
[1750433932697,1.12965728,104450.0,104440.0,0.19392418]
[1750433933086,1.12965728,104450.0,104440.0,0.38540288]
[1750433933495,0.60401344,104450.0,104440.0,0.42090288]
[1750433934493,0.24321344,104450.0,104440.0,0.42090288]
[1750433935298,0.05175304,104450.0,104440.0,0.42090288]
[1750433935490,0.05175304,104450.0,104440.0,0.78170288]
[1750433935998,0.00417407,104450.0,104440.0,1.27084672]
[1750433936496,0.56155091,104480.0,104470.0,0.1914238]
[1750433936702,0.25718781,104480.0,104470.0,0.1914238]
[1750433937000,0.6000451,104490.0,104480.0,0.1914054]
[1750433937189,0.8154451,104490.0,104480.0,0.3778054]
[1750433939796,0.8154451,104490.0,104480.0,0.1474]
[1750433939797,1.30458894,104490.0,104480.0,0.1474]
[1750433940101,1.53320494,104490.0,104480.0,0.3388054]
[1750433941093,1.17240494,104490.0,104480.0,0.3388054]
[1750433941292,1.53320494,104490.0,104480.0,0.3388054]
[1750433942199,1.34178894,104490.0,104480.0,0.3760054]
[1750433942398,0.8154451,104490.0,104480.0,0.3760054]
[1750433942790,0.18,104490.0,104480.0,0.3760054]
[1750433943100,0.18,104490.0,104480.0,0.4109054]
[1750433944196,0.18,104490.0,104480.0,0.84959099]
[1750433944392,0.20511464,104490.0,104480.0,0.3388054]
[1750433944597,1.25061965,104490.0,104480.0,0.1836]
[1750433944905,1.25061965,104490.0,104480.0,0.1474]
[1750433944906,1.31891965,104490.0,104480.0,0.1474]
[1750433945494,1.31891965,104490.0,104480.0,0.3388054]
[1750433945495,1.28431965,104490.0,104480.0,0.3388054]
[1750433945701,1.28431965,104490.0,104480.0,0.1836]
[1750433945903,1.31891965,104490.0,104480.0,0.1836]
[1750433946501,1.29380501,104490.0,104480.0,0.1836]
[1750433946694,1.29380501,104490.0,104480.0,0.3387654]
[1750433947292,1.3189437,104490.0,104480.0,0.3387654]
[1750433947601,1.3189437,104490.0,104480.0,0.1914054]
[1750433947805,1.3189437,104490.0,104480.0,0.3387654]
[1750433948302,0.82979986,104490.0,104480.0,0.3724654]
[1750433949802,0.79519986,104490.0,104480.0,0.3724654]
[1750433950011,0.79519986,104490.0,104480.0,0.4068654]
[1750433951500,0.20931276,104490.0,104480.0,1.25680924]
[1750433951706,0.18417407,104490.0,104480.0,1.25680924]
[1750433951904,0.18417407,104490.0,104480.0,1.27391119]
[1750433956011,0.18417407,104490.0,104480.0,1.3505053]
[1750433956906,0.37556187,104490.0,104480.0,1.3505053]
[1750433957101,0.37556187,104490.0,104480.0,0.66995606]
[1750433957306,1.22550571,104490.0,104480.0,0.19816195]
[1750433957613,0.79549063,104490.0,104480.0,0.38956815]
[1750433957811,0.79549063,104490.0,104480.0,0.42526815]
[1750433958506,0.24330283,104490.0,104480.0,0.42526815]
[1750433958702,0.43469063,104490.0,104480.0,0.42526815]
[1750433959107,0.24330283,104490.0,104480.0,0.42526815]
[1750433959305,0.24330283,104490.0,104480.0,0.27790815]
[1750433959512,0.20930283,104490.0,104480.0,0.76705199]
[1750433959813,0.20930283,104490.0,104480.0,1.12785199]
[1750433960204,0.18417407,104490.0,104480.0,1.12785199]
[1750433960410,0.18417407,104490.0,104480.0,1.27517199]
[1750433961015,0.20931626,104490.0,104480.0,1.27517199]
[1750433961713,0.40070928,104490.0,104480.0,0.42522815]
[1750433961913,0.92545312,104490.0,104480.0,0.38952815]
[1750433962314,0.43630928,104490.0,104480.0,0.38952815]
[1750433964310,0.79710928,104490.0,104480.0,0.38952815]
[1750433966223,0.60572148,104490.0,104480.0,0.38952815]
[1750433966720,0.60572148,104490.0,104480.0,0.42482815]
[1750433967020,0.57012148,104490.0,104480.0,0.42482815]
[1750433967217,0.76150928,104490.0,104480.0,0.42482815]
[1750433967719,0.79840928,104490.0,104480.0,0.42482815]
[1750433968515,0.79840928,104490.0,104480.0,0.38952815]
[1750433969314,0.83150928,104490.0,104480.0,0.38952815]
[1750433969722,1.32065312,104490.0,104480.0,0.3724262]
[1750433970122,1.32065312,104490.0,104480.0,0.3387262]
[1750433970911,0.83150928,104490.0,104480.0,0.3387262]
[1750433971117,0.83150928,104490.0,104480.0,0.3728262]
[1750433971825,0.64012148,104490.0,104480.0,0.3728262]
[1750433972020,0.83150938,104490.0,104480.0,0.3728262]
[1750433974127,0.60702148,104490.0,104480.0,0.3728262]
[1750433974329,0.57012148,104490.0,104480.0,0.4078262]
[1750433974630,0.57012148,104490.0,104480.0,0.89697004]
[1750433974827,0.57012148,104490.0,104480.0,0.4078262]
[1750433975526,0.20932148,104490.0,104480.0,0.4078262]
[1750433977323,0.20932148,104490.0,104480.0,0.89697004]
[1750433978927,0.20932148,104490.0,104480.0,1.15918243]
[1750433979518,0.20932148,104490.0,104480.0,1.16918243]
[1750433982141,0.20932148,104490.0,104480.0,1.24719595]
[1750433985645,0.20932148,104490.0,104480.0,1.23719595]
[1750433986344,0.20932148,104490.0,104480.0,0.84663972]
[1750433986535,0.20932148,104490.0,104480.0,1.23719595]
[1750433988546,0.02932148,104490.0,104480.0,1.23719595]
[1750433989051,0.67126571,104490.0,104480.0,0.3724662]
[1750433989350,0.70506571,104490.0,104480.0,0.3724662]
[1750433989843,0.31450948,104490.0,104480.0,0.3724662]
[1750433990052,0.31450948,104490.0,104480.0,0.76302243]
[1750433991254,0.12312148,104490.0,104480.0,0.76302243]
[1750433992149,0.31450948,104490.0,104480.0,0.76302243]
[1750433992941,0.31450948,104490.0,104480.0,0.76250243]
[1750433993146,1.06586571,104490.0,104480.0,0.3719462]
[1750433993448,1.10066571,104490.0,104480.0,0.3719462]
[1750433995053,1.10066571,104490.0,104480.0,0.3378462]
[1750433995354,0.1914063,104480.0,104470.0,0.39674908]
[1750433995547,1.20320994,104480.0,104470.0,0.54318908]
[1750433995748,1.23800994,104480.0,104470.0,0.54318908]
[1750433996660,0.1914246,104470.0,104460.0,1.3086779]
[1750433996845,0.73552824,104470.0,104460.0,0.3349979]
[1750433997149,0.73552824,104470.0,104460.0,0.4814379]
[1750433997150,0.15354741,104470.0,104460.0,0.4814379]
[1750433997350,0.34497201,104470.0,104460.0,0.4814379]
[1750433997550,0.34497201,104470.0,104460.0,0.52556083]
[1750433998047,0.34497201,104470.0,104460.0,0.52656083]
[1750434000850,0.34497201,104470.0,104460.0,0.47870153]
[1750434001056,1.09632824,104470.0,104460.0,0.3388646]
[1750434001250,0.11874741,104470.0,104460.0,0.58298083]
[1750434001442,0.08514741,104470.0,104460.0,1.15992083]
[1750434001646,0.27657201,104470.0,104460.0,1.15992083]
[1750434002150,0.08514741,104470.0,104460.0,1.15992083]
[1750434002455,0.08514741,104470.0,104460.0,1.16939782]
[1750434002658,0.6259044,104480.0,104470.0,0.1914246]
[1750434002851,1.78616024,104480.0,104470.0,0.2253246]
[1750434003553,1.82216024,104480.0,104470.0,0.2253246]
[1750434003955,1.82216024,104480.0,104470.0,0.1914246]
[1750434004656,1.3617815,104480.0,104470.0,0.1914246]
[1750434004852,1.3617815,104480.0,104470.0,0.2253246]
[1750434005455,1.36595557,104480.0,104470.0,0.2253246]
[1750434005655,1.7565118,104480.0,104470.0,0.2253246]
[1750434006054,1.7905118,104480.0,104470.0,0.2253246]
[1750434006255,1.8260118,104480.0,104470.0,0.2253246]
[1750434006857,1.8260118,104480.0,104470.0,0.1914246]
[1750434007861,1.3778674,104480.0,104470.0,0.1914246]
[1750434008063,0.1914246,104470.0,104460.0,0.91727372]
[1750434008261,0.1914246,104470.0,104460.0,0.52634]
[1750434008262,0.2269246,104470.0,104460.0,0.52634]
[1750434009259,0.61748083,104470.0,104460.0,0.4784811]
[1750434009564,0.65268083,104470.0,104460.0,0.4794811]
[1750434009957,0.75268083,104470.0,104460.0,0.2373269]
[1750434010156,1.11348083,104470.0,104460.0,0.3479669]
[1750434013657,1.11348083,104470.0,104460.0,0.0100995]
[1750434013865,1.11348083,104470.0,104450.0,0.14644]
[1750434013866,0.191443,104460.0,104450.0,0.14644]
[1750434014068,1.58435546,104460.0,104450.0,0.14644]
[1750434014368,1.77582746,104460.0,104450.0,0.14644]
[1750434014868,0.1914613,104450.0,104440.0,0.38435311]
[1750434015065,0.1914796,104440.0,104430.0,1.13158944]
[1750434015363,1.17378513,104440.0,104430.0,0.39079034]
[1750434015565,1.20778513,104440.0,104430.0,0.39079034]
[1750434016366,1.20778513,104440.0,104430.0,0.373638]
[1750434016662,1.20778513,104440.0,104430.0,0.18314]
[1750434016870,1.20778513,104440.0,104430.0,0.374638]
[1750434017160,1.20778513,104440.0,104430.0,0.001]
[1750434018769,1.20778513,104440.0,104420.0,0.01062252]
[1750434018770,0.191498,104430.0,104420.0,0.20213702]
[1750434018961,1.22970353,104430.0,104420.0,0.20213702]
[1750434019867,1.22970353,104430.0,104420.0,0.20213882]
[1750434020068,1.23070353,104430.0,104420.0,0.20213882]
[1750434020870,1.2348776,104430.0,104420.0,0.20213882]
[1750434021970,1.2348776,104430.0,104420.0,0.01062252]
[1750434022569,1.2348776,104430.0,104420.0,0.20213882]
[1750434023775,1.2348776,104430.0,104420.0,0.23783882]
[1750434024476,0.84432137,104430.0,104420.0,0.23783882]
[1750434024680,1.2348776,104430.0,104420.0,0.23783882]
[1750434026371,1.2348776,104430.0,104420.0,0.04632252]
[1750434026571,1.2348776,104430.0,104420.0,0.23783882]
[1750434026772,1.2348776,104430.0,104420.0,0.04632252]
[1750434027575,1.62543383,104430.0,104420.0,0.00095763]
[1750434027767,1.2348776,104430.0,104420.0,0.00095763]
[1750434028271,1.2348776,104430.0,104420.0,0.19247383]
[1750434028668,1.62543383,104430.0,104420.0,0.00095763]
[1750434028881,1.62543383,104430.0,104420.0,0.19247383]
[1750434029375,1.2348776,104430.0,104420.0,0.19247383]
[1750434029574,1.62543383,104430.0,104420.0,0.19247383]
[1750434029772,1.2348776,104430.0,104420.0,0.19247383]
[1750434030877,0.84432137,104430.0,104420.0,0.19247383]
[1750434031074,1.2348776,104430.0,104420.0,0.19247383]
[1750434035377,0.77332137,104430.0,104420.0,0.60024883]
[1750434035578,0.03102337,104430.0,104420.0,1.03534883]
[1750434035787,0.03102337,104430.0,104420.0,1.35534883]
[1750434035979,0.6480125,104450.0,104440.0,0.1914795]
[1750434036178,0.6480125,104450.0,104440.0,0.72795573]
[1750434036179,0.8280125,104450.0,104440.0,0.72795573]
[1750434036385,0.8280125,104450.0,104440.0,0.76755573]
[1750434036781,0.4672125,104450.0,104440.0,0.3769995]
[1750434039388,0.4672125,104450.0,104440.0,0.4130995]
[1750434039785,0.4193442,104450.0,104440.0,0.80365573]
[1750434039982,0.4193442,104450.0,104440.0,1.16445573]
[1750434040388,1.17070043,104450.0,104440.0,0.0361]
[1750434040587,0.1914796,104440.0,104430.0,0.18442]
[1750434040884,1.11283583,104440.0,104430.0,0.18442]
[1750434041080,1.15223583,104440.0,104430.0,0.22052]
[1750434041884,1.15223583,104440.0,104430.0,0.4120178]
[1750434042087,1.15223583,104440.0,104430.0,0.2660978]
[1750434042283,1.15223583,104440.0,104430.0,0.4120178]
[1750434043781,1.15223583,104440.0,104430.0,0.22052]
[1750434044691,1.15223583,104440.0,104430.0,0.4120179]
[1750434045284,1.15223583,104440.0,104430.0,0.18202]
[1750434045480,0.96075623,104440.0,104420.0,0.3906181]
[1750434045687,0.94285413,104430.0,104420.0,0.0946764]
[1750434045895,1.15905413,104430.0,104420.0,0.18607763]
[1750434046095,1.25770365,104430.0,104420.0,0.14687763]
[1750434046994,1.25770365,104430.0,104420.0,0.00195763]
[1750434047996,1.28344943,104430.0,104420.0,0.00095763]
[1750434048703,1.67400566,104430.0,104420.0,0.00095763]
[1750434049196,1.61683021,104430.0,104420.0,0.00095763]
[1750434049398,1.62649035,104430.0,104420.0,0.00095763]
[1750434050601,1.62649035,104430.0,104420.0,3e-08]
[1750434051402,1.70272429,104430.0,104420.0,3e-08]
[1750434052601,1.77241035,104430.0,104420.0,3e-08]
[1750434052903,1.84864429,104430.0,104420.0,3e-08]
[1750434055290,1.96393835,104430.0,104420.0,3e-08]
[1750434056194,1.77241035,104430.0,104420.0,3e-08]
[1750434057693,1.82965333,104430.0,104420.0,3e-08]
[1750434064703,0.89296073,104430.0,104420.0,3e-08]
[1750434064910,1.28351696,104430.0,104420.0,3e-08]
[1750434065203,1.21001696,104430.0,104420.0,0.26501613]
[1750434065508,0.79197398,104430.0,104420.0,0.26501613]
[1750434065998,1.15277398,104430.0,104420.0,0.26501613]
[1750434066199,0.79197398,104430.0,104420.0,0.26501613]
[1750434066508,0.40141775,104430.0,104420.0,0.41983394]
[1750434066996,0.40141775,104430.0,104420.0,0.81039017]
[1750434067196,0.20991985,104430.0,104420.0,1.17119017]
[1750434067397,0.02991985,104430.0,104420.0,1.17119017]
[1750434067901,0.00417407,104430.0,104420.0,1.17119017]
[1750434068505,0.00417407,104430.0,104420.0,1.61271817]
[1750434068808,0.00417407,104430.0,104420.0,1.61371817]
[1750434069103,0.00417407,104430.0,104420.0,1.42219017]
[1750434069309,0.00417407,104430.0,104420.0,1.17219017]
[1750434070207,0.19567177,104430.0,104420.0,1.17219017]
[1750434070912,0.33125407,104430.0,104420.0,1.17219017]
[1750434071111,0.22125407,104430.0,104420.0,1.17219017]
[1750434071312,0.02975637,104430.0,104420.0,1.17219017]
[1750434071508,0.02975637,104430.0,104420.0,1.61371817]
[1750434071714,0.00417407,104430.0,104420.0,1.61371817]
[1750434077215,0.00417407,104430.0,104420.0,1.36371817]
[1750434079516,0.00417407,104430.0,104420.0,1.17219017]
[1750434081718,0.00417407,104430.0,104420.0,1.92371817]
[1750434082225,0.00417407,104430.0,104420.0,1.36371817]
[1750434082423,0.00417407,104430.0,104420.0,1.72371817]
[1750434082629,0.00417407,104430.0,104420.0,1.17219017]
[1750434082920,0.3212707,104430.0,104420.0,0.78163394]
[1750434083127,0.3212707,104430.0,104420.0,1.17219017]
[1750434083629,0.3212707,104430.0,104420.0,0.78163394]
[1750434085526,0.3212707,104430.0,104420.0,1.17219017]
[1750434085726,0.3212707,104430.0,104420.0,0.78163394]
[1750434087231,0.0297717,104430.0,104420.0,1.17219017]
[1750434090824,0.0297717,104430.0,104420.0,1.50219017]
[1750434091226,0.0297717,104430.0,104420.0,1.17219017]
[1750434093735,0.0297717,104430.0,104420.0,1.36371817]
[1750434093933,0.00417407,104430.0,104420.0,1.9442744]
[1750434094130,0.00417407,104430.0,104420.0,1.55371817]
[1750434094330,0.00417407,104430.0,104420.0,1.9442744]
[1750434094527,0.00317407,104430.0,104420.0,1.9442744]
[1750434095330,0.4947061,104450.0,104440.0,0.1914807]
[1750434095532,0.71037512,104450.0,104440.0,0.6971607]
[1750434095837,0.55768136,104450.0,104440.0,1.17793285]
[1750434097339,0.55768136,104450.0,104440.0,0.78737662]
[1750434097538,0.55768136,104450.0,104440.0,1.17993285]
[1750434099541,0.59428136,104450.0,104440.0,1.17993285]
[1750434101040,0.36768136,104450.0,104440.0,1.17993285]
[1750434101237,0.36768136,104450.0,104440.0,1.88073285]
[1750434101637,0.34201234,104450.0,104440.0,1.88073285]
[1750434101937,0.36770528,104450.0,104440.0,1.88073285]
[1750434102446,0.02569294,104450.0,104440.0,2.07222085]
[1750434102843,0.2293261,104470.0,104460.0,0.191444]
[1750434103046,0.42463504,104470.0,104460.0,0.697124]
[1750434103246,0.42463504,104470.0,104460.0,0.734524]
[1750434103445,0.42463504,104470.0,104460.0,1.12508023]
[1750434104539,0.46073504,104470.0,104460.0,1.12508023]
[1750434104738,0.46073504,104470.0,104460.0,0.336324]
[1750434104939,0.46073504,104470.0,104460.0,0.3458065]
[1750434105139,0.46073504,104470.0,104460.0,0.42261533]
[1750434105847,1.21209127,104470.0,104460.0,0.42261533]
[1750434107637,1.21209127,104470.0,104450.0,0.5784885]
[1750434107844,0.58200023,104460.0,104450.0,0.8407161]
[1750434108047,0.89338666,104460.0,104450.0,0.8407161]
[1750434108249,1.64474289,104460.0,104450.0,0.00944659]
[1750434108445,0.1914623,104450.0,104440.0,0.61774722]
[1750434108747,1.10710496,104450.0,104440.0,0.14488]
[1750434108940,1.10710496,104450.0,104440.0,0.3363607]
[1750434109542,1.11127903,104450.0,104440.0,0.3363607]
[1750434110651,1.11127903,104450.0,104440.0,0.34580442]
[1750434111650,1.45329137,104450.0,104440.0,0.34580442]
[1750434111950,1.45329137,104450.0,104440.0,0.20092442]
[1750434112152,1.45329137,104450.0,104440.0,0.34580442]
[1750434113741,1.45329137,104450.0,104440.0,0.3363607]
[1750434114548,1.45329137,104450.0,104440.0,0.34585124]
[1750434116247,1.59689707,104450.0,104430.0,0.58152963]
[1750434116451,1.59689707,104450.0,104430.0,0.4794379]
[1750434116452,1.32424927,104440.0,104430.0,0.4794379]
[1750434116650,1.5299357,104440.0,104430.0,0.4794379]
[1750434116857,1.338455,104440.0,104430.0,0.4794379]
[1750434117056,1.13937937,104440.0,104430.0,0.86999413]
[1750434117359,0.77857937,104440.0,104430.0,0.8412379]
[1750434117556,0.36769877,104440.0,104430.0,1.23179413]
[1750434117756,0.36769877,104440.0,104430.0,1.31617511]
[1750434118758,0.36769877,104440.0,104430.0,1.62617511]
[1750434119356,0.36769877,104440.0,104430.0,1.31617511]
[1750434120757,0.34201234,104440.0,104430.0,1.31617511]
[1750434120955,0.00417407,104450.0,104440.0,0.1914807]
[1750434121150,0.00417407,104450.0,104440.0,1.35545255]
[1750434121352,0.00417407,104450.0,104440.0,1.54694055]
[1750434122068,0.00417407,104450.0,104440.0,1.15638432]
[1750434122249,0.00417407,104450.0,104440.0,1.54694055]
[1750434123759,0.00417407,104450.0,104440.0,1.54894055]
[1750434124060,0.00417407,104450.0,104440.0,1.55894055]
[1750434124862,0.00417407,104450.0,104440.0,1.22894055]
[1750434125161,0.00417407,104450.0,104440.0,1.60894055]
[1750434126160,7e-08,104450.0,104440.0,1.60894055]
[1750434126360,0.6281076,104480.0,104470.0,0.1914259]
[1750434126559,0.6281076,104480.0,104470.0,0.3357059]
[1750434126560,0.84340396,104480.0,104470.0,0.3357059]
[1750434127063,1.23396019,104480.0,104470.0,0.3357059]
[1750434127759,1.23396019,104480.0,104470.0,0.14428]
[1750434127960,0.2871461,104470.0,104460.0,0.14428]
[1750434128263,1.37433668,104470.0,104460.0,0.3357242]
[1750434128657,1.37433668,104470.0,104460.0,0.14428]
[1750434128857,1.37433668,104470.0,104460.0,0.3357242]
[1750434130865,1.32647618,104470.0,104460.0,0.3357242]
[1750434131064,0.84019975,104470.0,104460.0,0.3357242]
[1750434131364,0.47939975,104470.0,104460.0,0.3357242]
[1750434131751,0.28797385,104470.0,104460.0,0.3357242]
[1750434131957,0.47939975,104470.0,104460.0,0.3357242]
[1750434132157,0.28797385,104470.0,104460.0,0.3721242]
[1750434132565,0.28797385,104470.0,104460.0,1.12348043]
[1750434132764,0.21567385,104470.0,104460.0,1.16108043]
[1750434133863,0.21567385,104470.0,104460.0,0.80028043]
[1750434134067,0.19,104470.0,104460.0,0.80028043]
[1750434134563,0.3814259,104470.0,104460.0,0.80028043]
[1750434134767,0.4205259,104470.0,104460.0,0.4097242]
[1750434134960,0.44621417,104470.0,104460.0,0.4097242]
[1750434136163,0.48461417,104470.0,104460.0,0.4097242]
[1750434137070,0.29318827,104470.0,104460.0,0.4097242]
[1750434138963,0.21568827,104470.0,104460.0,0.4097242]
[1750434139171,0.21568827,104470.0,104460.0,1.16108043]
[1750434139761,0.21986234,104470.0,104460.0,1.16108043]